bitfinex-derivatives/quotes_ETHF0:USTF0_20250708
["timestamp","ask_amount","ask_price","bid_price","bid_amount"]
[1751986089576,0.77611,2576.8,2576.5,4.5283]
[1751986089776,0.77616,2576.7,2576.6,0.77614]
[1751986089974,0.77616,2576.7,2576.6,1.44144]
[1751986091081,1.41556,2576.7,2576.6,1.44144]
[1751986091372,0.77617,2576.6,2576.5,0.77618]
[1751986091578,0.77615,2576.7,2576.6,0.77614]
[1751986091775,1.41555,2576.7,2576.6,0.77614]
[1751986091975,28.02613,2576.8,2576.7,0.77614]
[1751986092375,28.66553,2576.8,2576.7,0.77614]
[1751986092776,0.77618,2576.7,2576.6,0.77615]
[1751986092979,1.41558,2576.7,2576.6,0.77615]
[1751986093175,0.77623,2576.5,2576.4,0.7762]
[1751986093370,2.0996,2576.7,2576.3,0.7967]
[1751986093571,0.6394,2576.4,2576.3,2.23826]
[1751986094979,27.8624,2576.4,2576.2,3.2078]
[1751986095176,27.8624,2576.4,2576.1,0.77628]
[1751986095177,0.77632,2576.2,2576.1,0.77628]
[1751986095382,1.41572,2576.2,2576.1,0.77628]
[1751986095578,8.476,2576.2,2576.1,1.44158]
[1751986095779,9.89169,2576.2,2576.1,1.44158]
[1751986096382,9.1154,2576.2,2576.1,1.44158]
[1751986096680,0.6394,2576.2,2576.1,1.44158]
[1751986096881,27.8674,2576.2,2576.1,1.44158]
[1751986097473,28.64369,2576.2,2576.1,1.44158]
[1751986098583,28.64369,2576.2,2576.1,0.6653]
[1751986098785,0.77635,2576.0,2575.9,5.31417]
[1751986098984,1.41575,2576.0,2575.9,5.97947]
[1751986099183,0.77635,2576.0,2575.9,5.97947]
[1751986099477,1.41575,2576.0,2575.9,0.6653]
[1751986100582,0.77641,2575.8,2575.7,0.77643]
[1751986100776,27.98441,2575.9,2575.8,0.77641]
[1751986101086,28.67301,2575.9,2575.8,0.6347]
[1751986101579,28.67301,2575.9,2575.6,6.2791]
[1751986101580,27.8966,2575.9,2575.6,3.9646]
[1751986101786,0.77644,2575.8,2575.7,0.77644]
[1751986101987,0.77644,2575.8,2575.7,1.41114]
[1751986102186,0.77644,2575.8,2575.7,0.6347]
[1751986102187,0.77641,2575.8,2575.7,0.6347]
[1751986102385,27.194,2575.8,2575.7,1.6244]
[1751986102583,27.194,2575.8,2575.7,3.75815]
[1751986102987,3.2078,2576.2,2576.1,0.77632]
[1751986103184,39.5474,2576.2,2576.1,2.40072]
[1751986103385,30.4348,2576.2,2576.1,2.40072]
[1751986103986,30.4348,2576.2,2576.1,3.12992]
[1751986104183,27.227,2576.2,2576.1,3.12992]
[1751986104684,27.9156,2576.2,2576.1,3.12992]
[1751986104987,27.227,2576.2,2576.1,3.12992]
[1751986105188,27.9156,2576.2,2576.1,2.14022]
[1751986105393,28.69189,2576.2,2576.1,1.3639]
[1751986105689,28.69189,2576.2,2576.1,0.6347]
[1751986105885,0.77635,2576.0,2575.9,0.77636]
[1751986106189,27.227,2576.2,2576.1,0.77632]
[1751986106387,28.00332,2576.2,2576.1,0.6347]
[1751986106986,28.00332,2576.2,2576.1,2.40072]
[1751986107193,27.205,2576.2,2576.1,2.40072]
[1751986107389,3.2078,2576.5,2576.1,1.6244]
[1751986107591,3.98401,2576.5,2576.4,0.77623]
[1751986107792,31.87861,2576.5,2576.4,1.41093]
[1751986108192,4.67261,2576.5,2576.4,1.41093]
[1751986108495,31.87661,2576.5,2576.4,1.41093]
[1751986108695,31.1004,2576.5,2576.4,1.41093]
[1751986108995,27.8906,2576.5,2576.4,2.40063]
[1751986109396,27.8886,2576.5,2576.4,2.40063]
[1751986109696,59.1068,2576.8,2576.7,0.77614]
[1751986109896,88.59959662,2576.8,2576.7,1.41084]
[1751986111395,60.62348662,2576.8,2576.7,1.41084]
[1751986111594,87.81548662,2576.8,2576.7,1.41084]
[1751986112594,1.51668662,2576.8,2576.7,2.40054]
[1751986112787,8.429,2577.2,2577.1,0.77602]
[1751986112988,9.94713087,2577.2,2577.1,2.40042]
[1751986113191,36.3126,2577.2,2577.1,2.40042]
[1751986113393,35.624,2577.2,2577.1,2.40042]
[1751986113591,35.624,2577.2,2577.1,1.41072]
[1751986113790,36.3126,2577.2,2577.1,2.40042]
[1751986114002,35.624,2577.2,2577.1,2.40042]
[1751986114197,36.3036,2577.2,2577.1,2.40042]
[1751986114399,35.615,2577.2,2577.1,2.40042]
[1751986114700,36.3036,2577.2,2577.1,2.40042]
[1751986116197,37.07959,2577.2,2577.1,0.6347]
[1751986116399,37.07959,2577.2,2577.1,1.41072]
[1751986116595,37.07959,2577.2,2577.1,0.6347]
[1751986116997,0.77603,2577.1,2577.0,0.77605]
[1751986117196,1.46463,2577.1,2577.0,0.6347]
[1751986117690,0.77603,2577.1,2577.0,1.41075]
[1751986117891,36.39102,2577.2,2577.0,1.41075]
[1751986118093,0.6886,2577.1,2577.0,1.41075]
[1751986118295,1.46462,2577.1,2577.0,1.41075]
[1751986119002,0.6886,2577.1,2577.0,1.41075]
[1751986119194,1.46462,2577.1,2577.0,1.41075]
[1751986119498,0.6886,2577.1,2577.0,1.41075]
[1751986119998,1.46462,2577.1,2577.0,1.41075]
[1751986120402,0.6886,2577.1,2577.0,1.41075]
[1751986120902,1.46462,2577.1,2577.0,1.41075]
[1751986121604,0.6886,2577.1,2577.0,1.41075]
[1751986121805,1.46462,2577.1,2577.0,1.41075]
[1751986121993,0.6886,2577.1,2577.0,1.41075]
[1751986122199,1.46462,2577.1,2577.0,1.41075]
[1751986122400,0.6886,2577.1,2577.0,1.41075]
[1751986122597,1.46462,2577.1,2577.0,0.6347]
[1751986122797,1.94015,2577.0,2576.6,0.77615]
[1751986123003,0.77613,2576.8,2576.7,0.77612]
[1751986123300,0.77613,2576.8,2576.7,1.41082]
[1751986123501,28.6235,2576.9,2576.8,0.77611]
[1751986123707,0.77611,2576.8,2576.7,1.41082]
[1751986124097,28.6235,2576.9,2576.8,0.77611]
[1751986124309,27.8474,2576.9,2576.8,0.77611]
[1751986124606,0.77617,2576.6,2576.5,0.77619]
[1751986124808,27.89017,2576.6,2576.5,1.41089]
[1751986125102,0.7762,2576.5,2576.4,0.77621]
[1751986125307,0.77625,2576.4,2576.3,0.77623]
[1751986125606,27.89025,2576.4,2576.3,1.41093]
[1751986126003,27.114,2576.4,2576.3,1.41093]
[1751986126199,27.114,2576.4,2576.3,0.77623]
[1751986126405,9.20315,2576.7,2576.6,0.77614]
[1751986126711,36.99875,2576.7,2576.6,0.77614]
[1751986127109,36.2226,2576.7,2576.6,0.77614]
[1751986127311,36.99874,2576.7,2576.6,0.77614]
[1751986127608,0.77619,2576.6,2576.5,0.77618]
[1751986128005,1.46479,2576.6,2576.5,1.41088]
[1751986128201,0.77619,2576.6,2576.5,1.41088]
[1751986128606,1.46479,2576.6,2576.5,1.41088]
[1751986128806,0.6886,2576.6,2576.5,1.41088]
[1751986129007,1.46477,2576.6,2576.5,1.41088]
[1751986129512,0.6886,2576.6,2576.5,1.41088]
[1751986129811,1.46477,2576.6,2576.5,1.41088]
[1751986131210,0.6886,2576.6,2576.5,1.41088]
[1751986131409,1.46477,2576.6,2576.5,1.41088]
[1751986132207,1.46477,2576.6,2576.5,0.6347]
[1751986132413,0.77626,2576.3,2576.2,3.98407]
[1751986132710,27.85726,2576.3,2576.2,4.66228]
[1751986133102,27.85726,2576.3,2576.2,3.886]
[1751986133301,28.54966,2576.3,2576.2,3.886]
[1751986133608,27.85726,2576.3,2576.2,4.66229]
[1751986133810,27.081,2576.3,2576.2,4.66229]
[1751986134010,27.85122,2576.5,2576.4,0.77621]
[1751986134209,27.85122,2576.5,2576.4,3.47667524]
[1751986134410,28.54362,2576.5,2576.4,3.47667524]
[1751986135411,0.77626,2576.3,2576.2,3.886]
[1751986135614,27.84426,2576.3,2576.2,3.886]
[1751986135809,27.84426,2576.3,2575.9,6.56682301]
[1751986135810,29.76846524,2576.3,2575.9,3.2078]
[1751986136117,0.77641,2575.8,2575.7,5.35547301]
[1751986136310,27.85141,2575.8,2575.7,1.4078]
[1751986136511,27.85141,2575.8,2575.7,2.18425]
[1751986136815,27.85141,2575.8,2575.7,4.88471524]
[1751986136816,27.075,2575.8,2575.7,4.88471524]
[1751986137012,27.073,2575.9,2575.8,0.77641]
[1751986137312,27.073,2575.9,2575.8,5.29881]
[1751986137815,27.073,2575.9,2575.8,6.95611]
[1751986138010,27.84938,2575.9,2575.8,6.95611]
[1751986138208,27.7654,2575.9,2575.8,3.74831]
[1751986138410,0.77641,2575.8,2575.7,0.7296]
[1751986138606,0.77641,2575.8,2575.7,1.4078]
[1751986138811,27.84939,2575.9,2575.8,0.77641]
[1751986139011,27.073,2575.9,2575.8,1.45461]
[1751986139210,3.9878,2576.4,2575.8,4.8651]
[1751986139408,0.77634,2576.1,2575.8,6.2116]
[1751986139611,35.468,2576.3,2575.8,6.2116]
[1751986139612,0.7763,2576.2,2576.1,0.7763]
[1751986139909,0.6924,2576.2,2576.1,1.4545]
[1751986140112,9.16927,2576.3,2576.2,0.77629]
[1751986140313,0.77629,2576.2,2576.1,1.75541]
[1751986140712,36.24129,2576.3,2576.2,0.77629]
[1751986141016,36.93369,2576.3,2576.2,1.45449]
[1751986141216,36.24129,2576.3,2576.2,1.45449]
[1751986141417,36.93369,2576.3,2576.2,1.45449]
[1751986141616,36.24129,2576.3,2576.2,1.45449]
[1751986142116,36.93369,2576.3,2576.2,0.6782]
[1751986142313,0.77635,2576.1,2576.0,0.77634]
[1751986142513,1.46875,2576.1,2576.0,1.45454]
[1751986142713,0.77641,2575.9,2575.8,0.77638]
[1751986142913,28.53881,2575.9,2575.8,0.77638]
[1751986143114,27.7624,2575.9,2575.8,0.77638]
[1751986143417,28.53878,2575.9,2575.8,1.45458]
[1751986143613,27.84638,2575.9,2575.8,1.45458]
[1751986143812,27.7624,2575.9,2575.8,1.45458]
[1751986144208,28.53878,2575.9,2575.8,1.45458]
[1751986144614,28.53878,2575.9,2575.8,0.77638]
[1751986145421,0.77648,2575.7,2575.6,0.77645]
[1751986145711,1.46888,2575.7,2575.6,0.77645]
[1751986145916,0.77648,2575.7,2575.6,1.45465]
[1751986146117,1.46888,2575.7,2575.6,1.45465]
[1751986146307,0.77648,2575.7,2575.6,1.45465]
[1751986146509,10.0399,2575.7,2575.4,0.77652]
[1751986146708,0.7766,2575.3,2575.0,7.54661301]
[1751986146911,0.7766,2575.3,2575.2,1.45478]
[1751986147108,27.061,2575.3,2575.2,1.45478]
[1751986147720,27.061,2575.3,2575.0,1.75573]
[1751986147916,0.77663,2575.1,2575.0,1.75573]
[1751986148113,0.77663,2575.1,2575.0,1.6573]
[1751986148312,0.77663,2575.1,2575.0,0.6782]
[1751986148512,9.17063,2575.1,2575.0,0.6782]
[1751986148815,12.37843,2575.1,2575.0,0.6782]
[1751986149116,0.77679,2574.6,2574.5,0.77678]
[1751986149324,27.064,2574.6,2574.5,0.77678]
[1751986149620,27.064,2574.6,2574.5,1.45498]
[1751986150014,27.064,2574.6,2574.4,0.77682]
[1751986150211,28.53319,2574.6,2574.5,0.6782]
[1751986150408,27.7564,2574.6,2574.5,1.45501]
[1751986150613,28.53318,2574.6,2574.5,0.6782]
[1751986151012,27.7564,2574.6,2574.3,5.4898]
[1751986151223,0.77682,2574.5,2574.3,6.26665]
[1751986151619,0.6924,2574.5,2574.4,0.6782]
[1751986151816,0.77681,2574.5,2574.4,1.45504]
[1751986152013,0.6924,2574.5,2574.4,1.45504]
[1751986152420,9.17275,2574.7,2574.6,0.77676]
[1751986152619,36.91515,2574.7,2574.6,1.45496]
[1751986153021,36.1384,2574.7,2574.6,1.45496]
[1751986153318,3.9325,2575.1,2574.6,4.8651]
[1751986153523,8.396,2574.9,2574.8,0.7767]
[1751986153723,9.17269,2574.9,2574.8,0.7767]
[1751986153925,8.396,2574.9,2574.8,1.4549]
[1751986154326,9.17268,2575.0,2574.9,0.77669]
[1751986154522,35.445,2575.0,2574.9,0.6782]
[1751986154821,36.1374,2575.0,2574.9,1.45489]
[1751986155124,35.445,2575.0,2574.6,3.2078]
[1751986155323,0.77672,2574.9,2574.8,0.7767]
[1751986156027,0.77675,2574.8,2574.7,0.77673]
[1751986156226,1.9864,2574.9,2574.3,4.9033]
[1751986156429,0.7768,2574.6,2574.5,0.77677]
[1751986156616,27.8168,2574.6,2574.5,1.45497]
[1751986157022,27.04,2574.6,2574.5,1.45497]
[1751986157222,0.7192,2574.9,2574.5,2.62019]
[1751986157527,9.89189,2574.9,2574.8,0.77672]
[1751986157722,36.93289,2574.9,2574.8,0.77672]
[1751986158222,35.437,2574.9,2574.8,0.77672]
[1751986158424,36.1294,2574.9,2574.8,0.77672]
[1751986158619,9.17366,2575.0,2574.9,0.77669]
[1751986158930,36.1374,2575.0,2574.9,1.45489]
[1751986159131,0.6924,2575.0,2574.9,1.45489]
[1751986159430,36.1334,2575.0,2574.9,1.45489]
[1751986159920,0.77666,2575.0,2574.9,1.45489]
[1751986160118,3.2078,2575.1,2575.0,0.77666]
[1751986160317,38.6448,2575.1,2575.0,1.42556]
[1751986160524,39.2808,2575.1,2575.0,1.42556]
[1751986160925,40.05743,2575.1,2575.0,1.42556]
[1751986161626,40.05743,2575.1,2574.6,4.5265]
[1751986161627,47.79528348,2575.1,2574.6,3.2078]
[1751986161837,0.77676,2574.8,2574.7,0.77671]
[1751986162130,0.77679,2574.7,2574.6,0.77676]
[1751986162424,27.672,2574.7,2574.6,1.42566]
[1751986162629,27.036,2574.7,2574.6,2.38656]
[1751986162927,27.672,2574.7,2574.6,1.42566]
[1751986163521,27.036,2574.7,2574.6,0.77676]
[1751986163724,27.045,2574.8,2574.6,3.55174]
[1751986163924,0.77668,2575.0,2574.9,0.77669]
[1751986164126,36.25568,2575.0,2574.9,1.42559]
[1751986164425,3.98445,2575.1,2575.0,0.77666]
[1751986164620,9.15466,2575.0,2574.9,0.77667]
[1751986164928,36.25066,2575.0,2574.9,1.42557]
[1751986165524,36.88666,2575.0,2574.9,0.6489]
[1751986165924,0.77672,2574.8,2574.7,3.04783]
[1751986166128,36.11,2575.0,2574.7,3.04783]
[1751986166129,0.77671,2574.9,2574.8,0.7767]
[1751986166324,0.77672,2574.8,2574.7,2.08693]
[1751986166530,1.41272,2574.8,2574.7,1.42563]
[1751986166727,0.636,2574.8,2574.7,1.42563]
[1751986166921,0.77671,2574.9,2574.8,0.77672]
[1751986167128,1.41271,2574.9,2574.8,1.42562]
[1751986167332,36.87671,2574.9,2574.8,0.6489]
[1751986167533,36.87671,2574.9,2574.8,1.42562]
[1751986167732,36.24071,2574.9,2574.8,0.6489]
[1751986167932,36.87671,2574.9,2574.8,1.42562]
[1751986168427,36.87671,2574.9,2574.8,0.6489]
[1751986168629,0.77678,2574.6,2574.5,3.2078]
[1751986168831,27.86078,2574.6,2574.5,1.42571]
[1751986169030,28.49678,2574.6,2574.5,1.42571]
[1751986169335,27.72,2574.6,2574.5,1.42571]
[1751986169736,27.72,2574.6,2574.5,2.75751]
[1751986170228,0.77681,2574.5,2574.4,1.56201]
[1751986170429,0.77687,2574.3,2574.2,3.98467]
[1751986170639,27.063,2574.3,2574.2,4.63357]
[1751986170832,28.47587,2574.3,2574.2,4.63357]
[1751986171135,27.063,2574.3,2574.2,4.63357]
[1751986171836,27.699,2574.3,2574.2,4.63357]
[1751986172332,0.636,2574.3,2574.2,4.63357]
[1751986172537,7.29442,2574.8,2574.2,4.8176]
[1751986172538,27.061,2574.4,2574.2,4.8176]
[1751986172728,0.77668,2575.0,2574.9,0.77668]
[1751986172932,28.50868,2575.0,2574.9,0.77668]
[1751986173436,11.5858,2575.1,2575.0,0.77666]
[1751986173437,3.2078,2575.1,2575.0,0.77666]
[1751986173638,30.9378,2575.1,2575.0,1.42556]
[1751986173831,30.3018,2575.1,2575.0,1.42556]
[1751986174032,4.62043,2575.1,2575.0,1.42556]
[1751986174438,39.3138,2575.1,2575.0,1.42556]
[1751986175437,36.106,2575.1,2575.0,1.42556]
[1751986175939,36.096,2575.1,2575.0,1.42556]
[1751986176139,0.77667,2575.0,2574.8,0.9609]
[1751986176340,0.77667,2575.0,2574.9,0.77666]
[1751986176940,0.77667,2575.0,2574.9,0.6489]
[1751986177140,0.7767,2574.9,2574.8,0.7767]
[1751986177843,0.636,2574.9,2574.8,1.4256]
[1751986178041,1.41269,2574.9,2574.8,1.4256]
[1751986178242,0.77672,2574.8,2574.7,1.53412]
[1751986178442,28.49272,2574.8,2574.7,1.53412]
[1751986178742,27.716,2574.8,2574.7,2.18302]
[1751986179036,9.1546,2575.2,2575.1,0.77663]
[1751986179243,1.52226738,2575.2,2575.1,2.38643]
[1751986179443,9.1471,2575.4,2575.3,0.77657]
[1751986179444,8.378,2575.4,2575.3,0.77657]
[1751986179636,9.8999295,2575.4,2575.3,1.42547]
[1751986180139,35.454,2575.4,2575.3,1.42547]
[1751986181238,35.454,2575.4,2575.3,2.71757]
[1751986182345,8.378,2575.4,2575.3,2.71757]
[1751986182543,36.077,2575.4,2575.3,2.71757]
[1751986182946,36.077,2575.4,2575.3,1.42547]
[1751986183348,36.21754,2575.4,2575.3,1.42547]
[1751986183846,9.79054,2575.4,2575.3,0.6489]
[1751986184049,36.83754,2575.4,2575.3,0.6489]
[1751986184350,0.77669,2574.9,2574.8,3.2078]
[1751986184555,28.45969,2574.9,2574.8,3.8567]
[1751986184755,27.047,2574.9,2574.8,3.8567]
[1751986184952,27.683,2574.9,2574.8,4.63342]
[1751986185153,28.45969,2574.9,2574.8,3.8567]
[1751986185456,27.683,2574.9,2574.5,6.2213]
[1751986185755,28.45971,2574.9,2574.8,0.6489]
[1751986186751,27.683,2574.9,2574.8,1.42562]
[1751986186946,27.038,2574.9,2574.8,10.43698348]
[1751986187153,0.7781,2575.3,2574.8,10.43698348]
[1751986187353,35.418,2575.2,2575.1,0.77663]
[1751986187556,36.8306,2575.2,2575.1,0.6489]
[1751986188146,36.8306,2575.2,2575.1,1.42553]
[1751986188557,1.4126,2575.2,2575.1,1.42553]
[1751986188754,36.8276,2575.2,2575.1,1.42553]
[1751986189452,1.4126,2575.2,2575.1,0.6489]
[1751986189655,36.8216,2575.2,2575.1,0.6489]
[1751986190253,0.77669,2574.9,2574.8,3.2078]
[1751986190455,28.46839,2574.9,2574.8,4.65252]
[1751986190653,28.46839,2574.9,2574.8,3.8758]
[1751986190958,27.6917,2574.9,2574.8,1.44472]
[1751986191352,28.46839,2574.9,2574.8,0.668]
[1751986192153,0.77675,2574.7,2574.6,2.12516]
[1751986192348,27.026,2574.7,2574.6,2.12516]
[1751986192554,27.80275,2574.7,2574.6,3.79916]
[1751986192852,0.77678,2574.6,2574.5,3.938]
[1751986193053,1.43648,2574.6,2574.5,3.938]
[1751986193358,1.43648,2574.6,2574.5,4.606]
[1751986193558,27.026,2574.7,2574.2,3.2078]
[1751986193559,0.77687,2574.3,2574.2,3.2078]
[1751986193754,27.6787,2574.3,2574.2,5.4378]
[1751986193959,27.79587,2574.3,2574.2,5.4378]
[1751986194153,28.45557,2574.3,2574.2,5.4378]
[1751986194354,27.6787,2574.3,2574.2,5.4378]
[1751986194555,28.45557,2574.3,2574.2,5.4378]
[1751986195553,27.6787,2574.3,2574.2,6.4438]
[1751986195857,8.373,2574.7,2574.6,0.77678]
[1751986196160,35.393,2574.7,2574.6,4.65258]
[1751986196360,36.16975,2574.7,2574.6,4.65258]
[1751986196561,36.82945,2574.7,2574.6,4.65258]
[1751986197158,36.82945,2574.7,2574.6,3.8758]
[1751986197762,36.82945,2574.7,2574.6,3.2078]
[1751986197960,0.77683,2574.5,2574.4,0.77683]
[1751986198160,0.77683,2574.5,2574.4,1.44483]
[1751986198361,1.43653,2574.5,2574.4,1.44483]
[1751986198562,1.43653,2574.5,2574.4,0.668]
[1751986198757,1.43653,2574.5,2574.4,1.44484]
[1751986199160,0.6597,2574.5,2574.4,1.44484]
[1751986199464,1.43651,2574.5,2574.4,1.44484]
[1751986199663,0.6597,2574.5,2574.4,1.44484]
[1751986199863,0.6597,2574.5,2574.4,3.85504]
[1751986200064,1.43651,2574.5,2574.4,2.84904]
[1751986200263,1.43651,2574.5,2574.4,0.668]
[1751986200569,1.43651,2574.5,2574.4,1.44484]
[1751986200863,0.6597,2574.5,2574.4,1.44484]
[1751986202067,9.14977,2574.7,2574.6,0.77677]
[1751986202267,36.0537,2574.7,2574.3,3.2078]
[1751986202466,0.7768,2574.6,2574.5,0.77679]
[1751986202668,0.6597,2574.6,2574.5,1.44479]
[1751986202965,27.021,2574.7,2574.5,1.674]
[1751986203166,8.373,2574.9,2574.6,0.77678]
[1751986203360,8.373,2574.9,2574.8,6.39610348]
[1751986203563,35.394,2574.9,2574.8,0.77672]
[1751986203757,36.83039,2574.9,2574.8,1.44472]
[1751986204263,36.0537,2574.9,2574.8,1.44472]
[1751986204766,9.0943,2575.4,2575.3,0.77657]
[1751986204961,38.29536289,2575.4,2575.3,0.77657]
[1751986205167,11.27336289,2575.4,2575.3,0.77657]
[1751986205368,0.77657,2575.3,2575.2,0.77657]
[1751986205565,37.55154,2575.4,2575.3,0.77657]
[1751986205869,36.775,2575.4,2575.0,1.3293]
[1751986206165,0.77661,2575.2,2575.1,0.77661]
[1751986206564,1.9415,2575.2,2574.7,0.7811]
[1751986206764,28.2879,2575.1,2574.7,1.55782]
[1751986207069,1.94165,2575.0,2574.5,3.2078]
[1751986207260,0.77678,2574.6,2574.5,3.98461]
[1751986207460,27.79678,2574.6,2574.5,3.2078]
[1751986207667,27.02,2574.6,2574.5,4.65261]
[1751986208068,27.79678,2574.6,2574.5,4.65261]
[1751986208369,28.45648,2574.6,2574.5,4.65261]
[1751986209172,27.6797,2574.6,2574.5,4.65261]
[1751986209372,27.79678,2574.6,2574.5,4.65261]
[1751986209571,27.02,2574.6,2574.5,4.65261]
[1751986209767,27.6797,2574.6,2574.5,4.65261]
[1751986209969,0.6597,2574.6,2574.5,10.27199348]
[1751986211675,35.394,2574.7,2574.6,0.77678]
[1751986212273,36.83047,2574.7,2574.6,0.77678]
[1751986212773,36.0537,2574.7,2574.6,1.44478]
[1751986213076,35.394,2574.7,2574.6,1.44478]
[1751986213471,36.0537,2574.7,2574.6,1.44478]
[1751986213773,36.83045,2574.7,2574.6,1.44478]
[1751986213977,1.48874,2574.8,2574.7,0.77675]
[1751986214275,27.732,2574.8,2574.7,1.44475]
[1751986214473,27.02,2574.8,2574.7,1.44475]
[1751986214771,3.9855,2575.1,2574.7,2.45075]
[1751986214970,27.79667,2575.0,2574.9,0.77667]
[1751986215180,1.43637,2575.0,2574.9,1.44467]
[1751986215469,0.77669,2574.9,2574.8,1.5231]
[1751986215674,0.77669,2574.9,2574.7,1.006]
[1751986215675,0.77673,2574.8,2574.7,0.77673]
[1751986215875,27.79773,2574.8,2574.7,1.44473]
[1751986216071,27.6807,2574.8,2574.7,1.44473]
[1751986216266,27.021,2574.8,2574.7,1.44473]
[1751986216468,27.6807,2574.8,2574.7,1.44473]
[1751986216772,27.021,2574.8,2574.7,1.44473]
[1751986217277,27.6807,2574.8,2574.7,1.44473]
[1751986217480,27.6807,2574.8,2574.7,2.45073]
[1751986218874,27.6807,2574.8,2574.7,1.44473]
[1751986219574,9.1507,2575.1,2575.0,0.77666]
[1751986219877,36.8304,2575.1,2575.0,1.44466]
[1751986220071,9.8104,2575.1,2575.0,1.44466]
[1751986220272,36.8304,2575.1,2575.0,1.44466]
[1751986220578,3.2078,2575.2,2575.1,0.77663]
[1751986220881,0.77663,2575.1,2575.0,0.77663]
[1751986221080,27.79662,2575.2,2575.1,0.77663]
[1751986221478,0.77663,2575.1,2575.0,0.77663]
[1751986221679,1.42653,2575.1,2575.0,1.47743]
[1751986222277,28.7054,2575.1,2574.8,3.2078]
[1751986222580,0.77669,2574.9,2574.8,3.98449]
[1751986222771,1.42659,2574.9,2574.8,3.98449]
[1751986222970,1.42659,2574.9,2574.8,4.68529]
[1751986223179,1.42659,2574.9,2574.8,1.47749]
[1751986223375,0.6499,2574.9,2574.8,1.47749]
[1751986223581,0.751,2575.0,2574.9,0.77669]
[1751986223980,1.4009,2575.0,2574.9,1.47749]
[1751986224376,0.751,2575.0,2574.9,1.47749]
[1751986224581,2.4374,2575.0,2574.6,0.7239]
[1751986224781,0.77678,2574.6,2574.5,3.9846]
[1751986224983,27.79578,2574.6,2574.5,3.2078]
[1751986225178,27.79578,2574.6,2574.5,3.98461]
[1751986225480,27.019,2574.6,2574.5,4.68541]
[1751986226080,27.019,2574.6,2574.5,6.04991]
[1751986227786,10.93617,2575.0,2574.9,0.77669]
[1751986227987,37.8284,2575.0,2574.9,0.77669]
[1751986228179,37.56856,2575.0,2574.9,1.47749]
[1751986228380,27.019,2575.0,2574.9,1.47749]
[1751986228577,27.6689,2575.0,2574.9,1.47749]
[1751986228781,28.44556,2575.0,2574.9,1.47749]
[1751986228983,1.7891,2575.3,2574.9,5.85032]
[1751986229179,1.52071817,2575.2,2575.1,0.77663]
[1751986229383,8.372,2575.5,2575.4,0.77654]
[1751986229680,36.91086072,2575.5,2575.4,3.47949389]
[1751986229880,36.91086072,2575.5,2575.4,5.19519389]
[1751986230080,37.56076072,2575.5,2575.4,1.47734]
[1751986230582,2.17076072,2575.5,2575.4,1.47734]
[1751986230784,1.52086072,2575.5,2575.4,2.49224]
[1751986231088,27.016,2575.5,2575.4,3.88374]
[1751986231780,3.2078,2575.8,2575.7,0.77644]
[1751986231981,37.55906753,2575.8,2575.7,1.47724]
[1751986232182,38.33547753,2575.8,2575.7,1.47724]
[1751986232382,36.81431,2575.8,2575.7,1.47724]
[1751986232789,36.0379,2575.8,2575.7,1.47724]
[1751986233487,36.81431,2575.8,2575.7,0.7008]
[1751986234084,36.81434,2575.8,2575.6,1.52915]
[1751986234284,36.81434,2575.8,2575.7,0.7008]
[1751986234485,40.2822,2575.8,2575.1,4.2227]
[1751986234685,0.77659,2575.3,2575.1,3.9844]
[1751986234885,28.7004,2575.2,2574.9,5.40254301]
[1751986235089,0.77666,2575.0,2574.9,4.62587301]
[1751986235282,0.77666,2575.0,2574.9,1.47749]
[1751986235283,28.44056,2575.0,2574.9,1.47749]
[1751986235483,28.44056,2575.0,2574.9,0.7008]
[1751986236087,27.6639,2575.0,2574.9,1.47749]
[1751986236283,27.014,2575.0,2574.9,1.47749]
[1751986236481,28.44056,2575.0,2574.9,0.7008]
[1751986236680,28.7004,2575.0,2574.7,3.2078]
[1751986236883,28.7004,2575.0,2573.6,15.53361306]
[1751986236884,6.18604,2574.9,2574.5,4.62587301]
[1751986237084,27.023,2574.8,2574.5,5.32667301]
[1751986237387,0.6499,2574.6,2574.5,6.10348301]
[1751986237586,0.77673,2574.8,2574.5,6.10348301]
[1751986237587,0.77672,2574.8,2574.5,1.7157]
[1751986237787,27.79775,2574.7,2574.6,0.77678]
[1751986237988,28.44765,2574.7,2574.6,1.47758]
[1751986238188,28.44765,2574.7,2574.5,6.14285301]
[1751986238481,0.77678,2574.6,2574.5,5.36607301]
[1751986238686,1.42668,2574.6,2574.5,4.62587301]
[1751986238982,1.42668,2574.6,2574.4,0.77684]
[1751986238983,0.77683,2574.5,2574.4,0.77684]
[1751986239284,1.4264,2574.6,2574.5,0.77681]
[1751986239790,1.4264,2574.6,2574.5,5.42440857]
[1751986240187,2.20318,2574.6,2574.5,0.77681]
[1751986240386,2.20318,2574.6,2574.4,1.47762]
[1751986240590,2.20318,2574.6,2574.5,0.77681]
[1751986240790,1.4264,2574.6,2574.5,0.77681]
[1751986240989,0.6499,2574.6,2574.5,0.77681]
[1751986241186,0.6499,2574.6,2574.2,4.64759857]
[1751986241487,0.7613,2574.5,2574.1,0.7402]
[1751986241685,54.051,2574.4,2574.3,3.2078]
[1751986241880,54.051,2574.4,2574.3,9.52783389]